fUSD/lending_fUSD_20240620
["ID","MTS","AMOUNT","RATE_DAILY","PERIOD"]
[329977501,1718890236490,-270.46120822,0.00014533,2]
[329977502,1718890236499,-500.0,0.00014533,2]
[329977503,1718890236508,-500.0,0.00014533,2]
[329977504,1718890236517,-500.0,0.00014533,2]
[329977505,1718890236526,-246.8824614,0.00014533,2]
[329977506,1718890236536,-500.0,0.00014533,2]
[329977507,1718890236546,-150.0,0.00014533,2]
[329977508,1718890236555,-395.62939452,0.00014533,2]
[329977509,1718890236564,-500.0,0.00014533,2]
[329977510,1718890236574,-500.0,0.00014533,2]
[329977511,1718890236582,-500.0,0.00014533,2]
[329977512,1718890236592,-500.0,0.00014533,2]
[329977513,1718890236601,-500.0,0.00014533,2]
[329977514,1718890236611,-500.0,0.00014533,2]
[329977515,1718890236621,-500.0,0.00014533,2]
[329977516,1718890236631,-500.0,0.00014533,2]
[329977517,1718890236643,-500.0,0.00014533,2]
[329977518,1718890236652,-500.0,0.00014533,2]
[329977519,1718890236661,-344.53282612,0.00014533,2]
[329977520,1718890236670,-500.0,0.00014533,2]
[329977521,1718890236679,-500.0,0.00014533,2]
[329977522,1718890236689,-561.55,0.00014533,2]
[329977523,1718890236698,-500.0,0.00014533,2]
[329977524,1718890236709,-500.0,0.00014533,2]
[329977525,1718890236718,-500.0,0.00014533,2]
[329977526,1718890236728,-402.07018771,0.00014533,2]
[329977527,1718890236739,-500.0,0.00014533,2]
[329977528,1718890236748,-500.0,0.00014533,2]
[329977529,1718890236758,-500.0,0.00014533,2]
[329977530,1718890236768,-500.0,0.00014533,2]
[329977531,1718890236777,-500.0,0.00014533,2]
[329977532,1718890236788,-500.0,0.00014533,2]
[329977533,1718890236797,-500.0,0.00014533,2]
[329977534,1718890236806,-572.36,0.00014533,2]
[329977535,1718890236815,-500.0,0.00014533,2]
[329977536,1718890236824,-500.0,0.00014533,2]
[329977537,1718890236833,-772.04,0.00014533,2]
[329977538,1718890236842,-771.33,0.00014533,2]
[329977539,1718890236851,-500.0,0.00014533,2]
[329977540,1718890236860,-7793.78,0.00014533,2]
[329977541,1718890236870,-500.0,0.00014533,2]
[329977542,1718890236879,-500.0,0.00014533,2]
[329977543,1718890236890,-2117.53,0.00014533,2]
[329977544,1718890236902,-1216.37,0.00014533,2]
[329977545,1718890236911,-500.0,0.00014533,2]
[329977546,1718890236921,-500.0,0.00014533,2]
[329977547,1718890236930,-500.0,0.00014533,2]
[329977548,1718890236939,-3681.19,0.00014533,2]
[329977549,1718890236948,-500.0,0.00014533,2]
[329977550,1718890236958,-553.53,0.00014533,2]
[329977551,1718890236966,-609.36,0.00014533,2]
[329977552,1718890236976,-10225.96,0.00014533,2]
[329977553,1718890236987,-500.0,0.00014533,2]
[329977554,1718890237000,-1303.75,0.00014533,2]
[329977555,1718890237011,-500.0,0.00014533,2]
[329977556,1718890237020,-500.0,0.00014533,2]
[329977557,1718890237029,-500.0,0.00014533,2]
[329977558,1718890237039,-500.0,0.00014533,2]
[329977559,1718890237048,-649.57,0.00014533,2]
[329977560,1718890237059,-500.0,0.00014533,2]
[329977561,1718890237068,-500.0,0.00014533,2]
[329977562,1718890237078,-621.2,0.00014533,2]
[329977563,1718890237088,-1405.35,0.00014533,2]
[329977564,1718890237097,-932.85,0.00014533,2]
[329977565,1718890237107,-500.0,0.00014533,2]
[329977566,1718890237115,-1228.44,0.00014533,2]
[329977567,1718890237125,-702.38,0.00014533,2]
[329977568,1718890237135,-2936.56,0.00014533,2]
[329977569,1718890237149,-1232.8,0.00014533,2]
[329977570,1718890237159,-1149.23,0.00014533,2]
[329977571,1718890237168,-241.86139271,0.00014533,2]
[329977572,1718890237177,-956.9,0.00014533,2]
[329977573,1718890237190,-777.87,0.00014533,2]
[329977574,1718890237199,-500.0,0.00014533,2]
[329977575,1718890237209,-500.0,0.00014533,2]
[329977576,1718890237219,-500.0,0.00014533,2]
[329977577,1718890237228,-812.95,0.00014533,2]
[329977578,1718890237238,-1658.7,0.00014533,2]
[329977579,1718890237252,-500.0,0.00014533,2]
[329977580,1718890237262,-1759.25,0.00014533,2]
[329977581,1718890237272,-500.0,0.00014533,2]
[329977582,1718890237281,-500.0,0.00014533,2]
[329977583,1718890237292,-828.09,0.00014533,2]
[329977584,1718890237302,-2249.74,0.00014533,2]
[329977585,1718890237311,-1106.79,0.00014533,2]
[329977586,1718890237321,-500.0,0.00014533,2]
[329977587,1718890237333,-1966.94,0.00014533,2]
[329977588,1718890237343,-1103.43,0.00014533,2]
[329977589,1718890237353,-1220.17,0.00014533,2]
[329977590,1718890237362,-726.04,0.00014533,2]
[329977591,1718890237372,-801.25,0.00014533,2]
[329977592,1718890237382,-833.34,0.00014533,2]
[329977593,1718890237395,-500.0,0.00014533,2]
[329977594,1718890237406,-801.82,0.00014533,2]
[329977595,1718890237416,-657.81,0.00014533,2]
[329977596,1718890237427,-1249.84,0.00014533,2]
[329977597,1718890237437,-645.71,0.00014533,2]
[329977598,1718890237447,-3135.5,0.00014533,2]
[329977599,1718890237456,-1970.45,0.00014533,2]
[329977600,1718890237467,-500.0,0.00014533,2]
[329977601,1718890237476,-500.0,0.00014533,2]
[329977602,1718890237487,-1141.11,0.00014533,2]
[329977603,1718890237497,-1727.25,0.00014533,2]
[329977604,1718890237507,-503.53,0.00014533,2]
[329977605,1718890237518,-565.3,0.00014533,2]
[329977606,1718890237529,-752.58,0.00014533,2]
[329977607,1718890237542,-1277.5,0.00014533,2]
[329977608,1718890237555,-1638.42,0.00014533,2]
[329977609,1718890237564,-621.7,0.00014533,2]
[329977610,1718890237574,-500.0,0.00014533,2]
[329977611,1718890237584,-950.35,0.00014533,2]
[329977612,1718890237594,-500.0,0.00014534,2]
[329977613,1718890237603,-500.0,0.00014534,2]
[329977614,1718890237613,-500.0,0.00014534,2]
[329977615,1718890237623,-500.0,0.00014534,2]
[329977616,1718890237633,-488.50942653,0.00014534,2]
[329977618,1718890237647,-500.0,0.00014534,2]
[329977620,1718890237658,-3616.91,0.00014534,2]
[329977622,1718890237668,-500.0,0.00014534,2]
[329977624,1718890237678,-500.0,0.00014534,2]
[329977626,1718890237687,-500.0,0.00014534,2]
[329977628,1718890237697,-547.1744624,0.00014534,2]
[329977630,1718890237707,-500.0,0.00014534,2]
[329977632,1718890237718,-500.0,0.00014534,2]
[329977634,1718890237728,-500.0,0.00014534,2]
[329977637,1718890237739,-500.0,0.00014534,2]
[329977638,1718890237749,-468.93129471,0.00014534,2]
[329977640,1718890237759,-500.0,0.00014534,2]
[329977642,1718890237768,-500.0,0.00014534,2]
[329977645,1718890237778,-500.0,0.00014534,2]
[329977647,1718890237787,-500.0,0.00014534,2]
[329977649,1718890237797,-558.451957,0.00014534,2]
[329977650,1718890237807,-500.0,0.00014534,2]
[329977652,1718890237817,-195.85231739,0.00014534,2]
[329977654,1718890237827,-500.0,0.00014534,2]
[329977657,1718890237838,-500.0,0.00014534,2]
[329977658,1718890237847,-500.0,0.00014534,2]
[329977660,1718890237857,-500.0,0.00014534,2]
[329977662,1718890237867,-500.0,0.00014534,2]
[329977664,1718890237877,-500.0,0.00014534,2]
[329977666,1718890237887,-570.89,0.00014534,2]
[329977668,1718890237900,-536.57,0.00014534,2]
[329977671,1718890237909,-654.17,0.00014534,2]
[329977672,1718890237919,-938.6,0.00014534,2]
[329977674,1718890237928,-500.0,0.00014534,2]
[329977676,1718890237939,-613.07,0.00014534,2]
[329977679,1718890237949,-4758.03,0.00014534,2]
[329977681,1718890237959,-1594.95,0.00014534,2]
[329977683,1718890237969,-735.79,0.00014534,2]
[329977685,1718890237979,-500.0,0.00014534,2]
[329977687,1718890237989,-1244.81,0.00014534,2]
[329977689,1718890237999,-1027.41,0.00014534,2]
[329977690,1718890238009,-1802.01,0.00014534,2]
[329977691,1718890238019,-6611.8,0.00014534,2]
[329977692,1718890238029,-5379.96,0.00014534,2]
[329977693,1718890238038,-500.0,0.00014534,2]
[329977694,1718890238048,-500.0,0.00014534,2]
[329977695,1718890238058,-1369.21,0.00014534,2]
[329977696,1718890238067,-828.5,0.00014534,2]
[329977697,1718890238077,-500.0,0.00014534,2]
[329977698,1718890238087,-500.0,0.00014534,2]
[329977699,1718890238097,-500.0,0.00014534,2]
[329977700,1718890238107,-1536.96,0.00014534,2]
[329977701,1718890238120,-1409.99,0.00014534,2]
[329977702,1718890238129,-500.0,0.00014534,2]
[329977703,1718890238142,-929.36,0.00014534,2]
[329977704,1718890238151,-370.5011865,0.00014534,2]
[329977705,1718890238161,-500.0,0.00014534,2]
[329977706,1718890238170,-500.0,0.00014534,2]
[329977707,1718890238179,-500.0,0.00014534,2]
[329977708,1718890238188,-500.0,0.00014534,2]
[329977709,1718890238198,-629.52,0.00014534,2]
[329977710,1718890238207,-420.0,0.00014585,2]
[329977711,1718890238217,-2800.0,0.000146,5]
[329977712,1718890238226,-210.0,0.00014634,2]
[329977713,1718890238236,-500.0,0.000147,5]
[329977714,1718890238246,-617.39185762,0.00014765,2]
[329977715,1718890238255,-355.0,0.000148,2]
[329977716,1718890238266,-1000.0,0.000148,2]
[329977717,1718890238276,-114006.70669679,0.000148,2]
[329977718,1718890238285,-500.0,0.000148,5]
[329977719,1718890238295,-500.0,0.00014806,2]
[329977720,1718890238305,-580.58,0.00014806,2]
[329977721,1718890238315,-500.0,0.00014806,2]
[329977722,1718890238324,-511.2,0.00014806,2]
[329977723,1718890238334,-1018.05,0.00014806,2]
[329977724,1718890238346,-2538.55,0.00014806,2]
[329977725,1718890238355,-564.07,0.00014806,2]
[329977726,1718890238365,-828.12,0.00014806,2]
[329977727,1718890238375,-3439.8,0.00014806,2]
[329977728,1718890238384,-928.05109253,0.00014806,2]
[329977820,1718890240039,-515.62,0.00014258,2]
[329977822,1718890240048,-515.62,0.00014532,2]
[329977824,1718890240059,-175.10890747,0.00014806,2]
[329977826,1718890240069,-504.15,0.00014806,2]
[329977828,1718890240080,-3001.48,0.00014806,2]
[329977830,1718890240090,-553.13,0.00014806,2]
[329977832,1718890240100,-1553.92,0.00014806,2]
[329977834,1718890240110,-1046.73,0.00014806,2]
[329977836,1718890240120,-500.0,0.00014806,2]
[329977838,1718890240130,-929.33,0.00014806,2]
[329977840,1718890240144,-715.94,0.00014806,2]
[329977842,1718890240154,-500.0,0.00014806,2]
[329977844,1718890240163,-554.80751648,0.00014806,2]
[329977850,1718890240213,-790.66248352,0.00014806,2]
[329977852,1718890240223,-500.0,0.00014806,2]
[329977854,1718890240233,-500.0,0.00014806,2]
[329977856,1718890240246,-688.47,0.00014806,2]
[329977858,1718890240259,-223.08833274,0.00014806,2]
[329977860,1718890240271,-292.53166726,0.00014806,2]
[329977862,1718890240281,-712.24,0.00014807,2]
[329977864,1718890240291,-500.0,0.00014807,2]
[329977866,1718890240301,-767.15,0.00014807,2]
[329977868,1718890240312,-500.0,0.00014807,2]
[329977870,1718890240322,-500.0,0.00014807,2]
[329977872,1718890240333,-198.85768085,0.00014807,2]
[329977874,1718890240344,-500.0,0.00014807,2]
[329977876,1718890240355,-150.0,0.00014807,2]
[329977879,1718890240376,-139.19447339,0.00014807,2]
[329977881,1718890240393,-360.80552661,0.00014807,2]
[329977883,1718890240404,-242.48417635,0.00014807,2]
[329977885,1718890240415,-500.0,0.00014807,2]
[329977887,1718890240426,-500.0,0.00014807,2]
[329977890,1718890240437,-500.0,0.00014807,2]
[329977892,1718890240448,-500.0,0.00014807,2]
[329977894,1718890240459,-500.0,0.00014807,2]
[329977896,1718890240470,-500.0,0.00014807,2]
[329977898,1718890240480,-500.0,0.00014807,2]
[329977900,1718890240491,-500.0,0.00014807,2]
[329977902,1718890240502,-500.0,0.00014807,2]
[329977904,1718890240512,-500.0,0.00014807,2]
[329977906,1718890240523,-561.55,0.00014807,2]
[329977908,1718890240535,-500.0,0.00014807,2]
[329977910,1718890240545,-500.0,0.00014807,2]
[329977912,1718890240556,-500.0,0.00014807,2]
[329977914,1718890240566,-500.0,0.00014807,2]
[329977916,1718890240576,-500.0,0.00014807,2]
[329977918,1718890240587,-500.0,0.00014807,2]
[329977920,1718890240596,-500.0,0.00014807,2]
[329977922,1718890240607,-500.0,0.00014807,2]
[329977924,1718890240616,-500.0,0.00014807,2]
[329977926,1718890240626,-500.0,0.00014807,2]
[329977928,1718890240636,-500.0,0.00014807,2]
[329977930,1718890240651,-500.0,0.00014807,2]
[329977932,1718890240661,-7793.78,0.00014807,2]
[329977934,1718890240670,-500.0,0.00014807,2]
[329977936,1718890240680,-500.0,0.00014807,2]
[329977938,1718890240690,-2117.53,0.00014807,2]
[329977940,1718890240700,-1216.37,0.00014807,2]
[329977942,1718890240710,-481.65390688,0.00014807,2]
[329977944,1718890240720,-500.0,0.00014807,2]
[329977946,1718890240730,-500.0,0.00014807,2]
[329977948,1718890240739,-49.72056186,0.00014807,2]
[329977951,1718890240752,-807.86418335,0.00014807,2]
[329977957,1718890240802,-261.52929933,0.00014807,2]
[329977971,1718890241002,-2562.07595546,0.00014807,2]
[329977973,1718890241011,-500.0,0.00014807,2]
[329977975,1718890241021,-553.53,0.00014807,2]
[329977977,1718890241031,-609.36,0.00014807,2]
[329977979,1718890241041,-4664.95045266,0.00014807,2]
[329977982,1718890241053,-5561.00954734,0.00014807,2]
[329977984,1718890241062,-500.0,0.00014807,2]
[329977986,1718890241072,-1303.75,0.00014807,2]
[329977988,1718890241082,-500.0,0.00014807,2]
[329977990,1718890241091,-500.0,0.00014807,2]
[329977992,1718890241101,-500.0,0.00014807,2]
[329977994,1718890241110,-335.12894043,0.00014807,2]
[329977996,1718890241119,-649.57,0.00014807,2]
[329977998,1718890241129,-500.0,0.00014807,2]
[329978000,1718890241138,-500.0,0.00014807,2]
[329978002,1718890241150,-621.2,0.00014807,2]
[329978004,1718890241159,-1405.35,0.00014807,2]
[329978006,1718890241169,-932.85,0.00014807,2]
[329978008,1718890241179,-500.0,0.00014807,2]
[329978011,1718890241189,-1228.44,0.00014807,2]
[329978013,1718890241198,-702.38,0.00014807,2]
[329978015,1718890241207,-2936.56,0.00014807,2]
[329978017,1718890241217,-1232.8,0.00014807,2]
[329978019,1718890241227,-1149.23,0.00014807,2]
[329978021,1718890241236,-956.9,0.00014807,2]
[329978023,1718890241248,-777.87,0.00014807,2]
[329978025,1718890241258,-453.35395271,0.00014807,2]
[329978027,1718890241270,-500.0,0.00014807,2]
[329978029,1718890241279,-500.0,0.00014807,2]
[329978031,1718890241288,-812.95,0.00014807,2]
[329978033,1718890241298,-1268.41305222,0.00014807,2]
[329978035,1718890241311,-390.28694778,0.00014807,2]
[329978037,1718890241320,-500.0,0.00014807,2]
[329978039,1718890241330,-500.0,0.00014807,2]
[329978041,1718890241343,-1759.25,0.00014807,2]
[329978043,1718890241352,-500.0,0.00014807,2]
[329978045,1718890241362,-828.09,0.00014807,2]
[329978048,1718890241371,-2249.74,0.00014807,2]
[329978050,1718890241381,-1106.79,0.00014807,2]
[329978052,1718890241390,-500.0,0.00014807,2]
[329978053,1718890241404,-940.86887735,0.00014807,2]
[329978062,1718890241482,-1026.07112265,0.00014807,2]
[329978064,1718890241492,-1103.43,0.00014807,2]
[329978067,1718890241503,-1220.17,0.00014807,2]
[329978069,1718890241514,-726.04,0.00014807,2]
[329978071,1718890241524,-801.25,0.00014807,2]
[329978073,1718890241534,-833.34,0.00014807,2]
[329978075,1718890241544,-500.0,0.00014807,2]
[329978077,1718890241555,-801.82,0.00014807,2]
[329978079,1718890241565,-657.81,0.00014807,2]
[329978081,1718890241575,-1249.84,0.00014807,2]
[329978083,1718890241585,-645.71,0.00014807,2]
[329978085,1718890241595,-3135.5,0.00014807,2]
[329978087,1718890241606,-1970.45,0.00014807,2]
[329978089,1718890241619,-500.0,0.00014807,2]
[329978091,1718890241629,-500.0,0.00014807,2]
[329978093,1718890241640,-1141.11,0.00014807,2]
[329978096,1718890241659,-1727.25,0.00014807,2]
[329978098,1718890241669,-503.53,0.00014807,2]
[329978100,1718890241679,-565.3,0.00014807,2]
[329978102,1718890241690,-752.58,0.00014807,2]
[329978104,1718890241699,-1277.5,0.00014807,2]
[329978106,1718890241709,-1638.42,0.00014807,2]
[329978108,1718890241719,-621.7,0.00014807,2]
[329978110,1718890241729,-500.0,0.00014807,2]
[329978112,1718890241738,-950.35,0.00014807,2]
[329978114,1718890241749,-500.0,0.00014808,2]
[329978116,1718890241758,-500.0,0.00014808,2]
[329978117,1718890241767,-500.0,0.00014808,2]
[329978119,1718890241777,-936.82887732,0.00014808,2]
[329978121,1718890241789,-2612.27654001,0.00014808,2]
[329978123,1718890241813,-67.80458267,0.00014808,2]
[329978125,1718890241823,-500.0,0.00014808,2]
[329978127,1718890241833,-500.0,0.00014808,2]
[329978129,1718890241842,-500.0,0.00014808,2]
[329978130,1718890241852,-500.0,0.00014808,2]
[329978132,1718890241862,-500.0,0.00014808,2]
[329978134,1718890241872,-500.0,0.00014808,2]
[329978135,1718890241881,-500.0,0.00014808,2]
[329978137,1718890241890,-500.0,0.00014808,2]
[329978139,1718890241906,-500.0,0.00014808,2]
[329978140,1718890241915,-500.0,0.00014808,2]
[329978142,1718890241925,-469.40641639,0.00014808,2]
[329978144,1718890241934,-500.0,0.00014808,2]
[329978146,1718890241943,-153.96918964,0.00014808,2]
[329978147,1718890241952,-500.0,0.00014808,2]
[329978149,1718890241962,-596.13761566,0.00014808,2]
[329978151,1718890241972,-500.0,0.00014808,2]
[329978153,1718890241985,-500.0,0.00014808,2]
[329978154,1718890241995,-500.0,0.00014808,2]
[329978156,1718890242005,-536.57,0.00014808,2]
[329978158,1718890242015,-654.17,0.00014808,2]
[329978160,1718890242026,-938.6,0.00014808,2]
[329978161,1718890242036,-500.0,0.00014808,2]
[329978163,1718890242046,-613.07,0.00014808,2]
[329978164,1718890242055,-107.28052596,0.00014808,2]
[329978314,1718890243811,-865.833,0.00014135,2]
[329978317,1718890243820,-854.84336963,0.00014259,2]
[329978321,1718890243834,-17.08663037,0.00014259,2]
[329978324,1718890243843,-382.98820346,0.00014533,2]
[329978328,1718890243857,-488.94179654,0.00014533,2]
[329978332,1718890243866,-871.93,0.00014807,2]
[329978335,1718890243876,-4650.74947404,0.00014808,2]
[329978338,1718890243886,-504.29183064,0.00014808,2]
[329978388,1718890244264,-1090.65816936,0.00014808,2]
[329978391,1718890244274,-735.79,0.00014808,2]
[329978393,1718890244284,-500.0,0.00014808,2]
[329978395,1718890244295,-1244.81,0.00014808,2]
[329978398,1718890244305,-1027.41,0.00014808,2]
[329978401,1718890244314,-1802.01,0.00014808,2]
[329978404,1718890244324,-6611.8,0.00014808,2]
[329978407,1718890244335,-5379.96,0.00014808,2]
[329978410,1718890244345,-500.0,0.00014808,2]
[329978413,1718890244354,-500.0,0.00014808,2]
[329978415,1718890244364,-1369.21,0.00014808,2]
[329978417,1718890244373,-828.5,0.00014808,2]
[329978419,1718890244383,-500.0,0.00014808,2]
[329978421,1718890244395,-500.0,0.00014808,2]
[329978423,1718890244405,-500.0,0.00014808,2]
[329978424,1718890244414,-1536.96,0.00014808,2]
[329978426,1718890244423,-1409.99,0.00014808,2]
[329978428,1718890244433,-500.0,0.00014808,2]
[329978430,1718890244443,-929.36,0.00014808,2]
[329978432,1718890244452,-500.0,0.00014808,2]
[329978434,1718890244462,-500.0,0.00014808,2]
[329978436,1718890244472,-500.0,0.00014808,2]
[329978438,1718890244481,-500.0,0.00014808,2]
[329978440,1718890244491,-629.52,0.00014808,2]
[329978442,1718890244500,-2687.34085946,0.0001485,2]
[329978444,1718890244512,-312.65914054,0.0001485,2]
[329978446,1718890244522,-200.0,0.0001488,2]
[329978448,1718890244531,-1000.0,0.0001488,2]
[329978450,1718890244541,-500.0,0.0001488,2]
[329978452,1718890244551,-200.0,0.0001488,2]
[329978454,1718890244560,-179.00886033,0.000149,2]
[329978481,1718890244812,-184.81202641,0.000149,2]
[329978483,1718890244822,-500.0,0.000149,5]
[329978485,1718890244831,-1361.85665176,0.000149,2]
[329978487,1718890244840,-428.87748604,0.000149,2]
[329978489,1718890244849,-1000.0,0.00014974,2]
[329978491,1718890244859,-1476.18007534,0.00014999,2]
[329978493,1718890244868,-614.0,0.00015,2]
[329978495,1718890244877,-234036.60178469,0.00015,2]
[329978497,1718890244886,-155.0,0.00015,2]
[329978499,1718890244902,-1922.56118926,0.00015,2]
[329978501,1718890244912,-362750.99420075,0.00015,2]
[329978503,1718890244922,-155.92936454,0.00015,2]
[329978505,1718890244931,-97687.45287821,0.00015,2]
[329978507,1718890244943,-444.24779552,0.00015,2]
[329978509,1718890244955,-6555.6,0.00015,2]
[329978511,1718890244967,-7092.96929093,0.00015,2]
[329978514,1718890244979,-884.18795845,0.00015,2]
[329978516,1718890244990,-748.724,0.00015,2]
[329978518,1718890245001,-113309.7270379,0.00015,2]
[329978520,1718890245011,-2000.0,0.00015,2]
[329978522,1718890245022,-2000.0,0.00015,2]
[329978524,1718890245031,-627331.71698679,0.00015,2]
[329978526,1718890245042,-304.94880717,0.00015,2]
[329978528,1718890245052,-569053.60716824,0.00015,2]
[329978529,1718890245064,-655.0,0.00015,2]
[329978530,1718890245075,-31527.22120152,0.00015,2]
[329978531,1718890245086,-54958.82654384,0.00015,2]
[329978532,1718890245098,-1299318.33711523,0.00015,2]
[329978533,1718890245107,-1232224.8644335,0.00015,2]
[329978534,1718890245116,-731786.99643845,0.00015,2]
[329978535,1718890245127,-300.48156444,0.00015,2]
[329978537,1718890245168,-500.0,0.00014258,2]
[329978539,1718890245177,-6144.55524363,0.00015,2]
[329978541,1718890245189,-98755.43360988,0.00015,2]
[329978543,1718890245198,-1000.0,0.00015,2]
[329978545,1718890245208,-200.0,0.00015,2]
[329978547,1718890245217,-30000.0,0.00015,2]
[329978549,1718890245227,-57544.56639012,0.00015,2]
[329978552,1718890245238,-168776.53353501,0.00015,2]
[329978630,1718890245944,-371.92879527,0.00014135,2]
[329978632,1718890245955,-70.07120473,0.00014135,2]
[329978634,1718890245964,-180.03359241,0.0001426,2]
[329978663,1718890246238,-3221.04,0.00014259,2]
[329978665,1718890246251,-602.13640759,0.0001426,2]
[329978667,1718890246262,-500.0,0.00014532,2]
[329978670,1718890246272,-782.17,0.00014534,2]
[329978672,1718890246281,-500.0,0.00014806,2]
[329978673,1718890246290,-782.17,0.00014808,2]
[329978675,1718890246301,-6502.18361996,0.00015,2]
[329978678,1718890246314,-2121.53751284,0.00015,2]
[329978680,1718890246325,-13127.6,0.00015,2]
[329978682,1718890246339,-14037.71590511,0.00015,2]
[329978684,1718890246351,-1523.78274965,0.00015,2]
[329978687,1718890246362,-918.75679,0.00015,2]
[329978708,1718890246559,-500.0,0.00014259,2]
[329978710,1718890246569,-1697.79675111,0.00014533,2]
[329978713,1718890246581,-504.95163562,0.00014533,2]
[329978715,1718890246592,-949.113405,0.00014533,2]
[329979457,1718890513238,295.0,0.00025,60]
[329979458,1718890556633,185.53,0.00010959,2]
[329979459,1718890567178,154.61,0.00010959,2]
[329979460,1718890577726,773.08,0.00010959,2]
[329979461,1718890620242,165.92,0.00010861,2]
[329979462,1718890627435,380.08,0.00011658,2]
[329979470,1718891248216,432.44,0.00010899,2]
[329979488,1718891434936,-182.67,0.00013141,2]
[329979489,1718891434945,-445.45349577,0.00013152,3]
[329979490,1718891434961,-177.57650423,0.00013152,3]
[329979492,1718891434971,-1105.58,0.00013152,2]
[329979496,1718891434980,-432.44,0.00013163,2]
[329979498,1718891434988,-250.0,0.00013169,2]
[329979500,1718891434997,-1000.0,0.00013232,2]
[329979503,1718891435007,-250.0,0.00013478,2]
[329979504,1718891435016,-1903.89,0.00013478,2]
[329979505,1718891435027,-150.0,0.00013579,2]
[329979506,1718891435037,-203.0,0.00013579,2]
[329979507,1718891435048,-179.00886033,0.0001358,2]
[329979508,1718891435057,-184.8120264,0.0001358,2]
[329979509,1718891435066,-323.52460306,0.0001358,2]
[329979510,1718891435077,-151.95189317,0.0001358,2]
[329979511,1718891435086,-7960.19874885,0.00013679,2]
[329979512,1718891435096,-14723.07519588,0.00013679,2]
[329979513,1718891435108,-2259.47975856,0.00013679,2]
[329979514,1718891435122,-800.0,0.00013679,2]
[329979515,1718891435134,-11625.8174685,0.00013679,2]
[329979516,1718891435145,-1324.76351156,0.00013679,2]
[329979517,1718891435157,-718.42740746,0.00013679,2]
[329979518,1718891435169,-79866.89418247,0.00013679,2]
[329979519,1718891435181,-582.92504737,0.00013679,2]
[329979520,1718891435240,-571.61940899,0.00013679,2]
[329979523,1718891435252,-909.67996557,0.00013679,2]
[329979525,1718891435266,-384930.99036316,0.00013679,2]
[329979705,1718891440311,-608.87822039,0.00013679,2]
[329979740,1718891440637,-3200.0,0.00013679,2]
[329979771,1718891440941,-38935.72141899,0.00013679,2]
[329979852,1718891443439,-1571.80506846,0.00013679,2]
[329979853,1718891443451,-917.79,0.00013679,2]
[329979854,1718891443855,-3193.54127917,0.00013679,2]
[329979880,1718891446301,-127948.20984201,0.00013679,2]
[329979882,1718891446313,-219353.3369748,0.00013679,2]
[329979883,1718891446324,-2552.43064446,0.00013679,2]
[329979884,1718891446336,-1751.55048,0.00013679,2]
[329979886,1718891446348,-72422.90095815,0.00013679,2]
[329979887,1718891446360,-721.76064,0.00013679,2]
[329979899,1718891709883,151.0,0.00019459,120]
[329979900,1718891794746,467.09,0.00010515,2]
[329979901,1718892335310,443.73,0.00010213,2]
[329979921,1718892634882,-150.0,0.0001209,2]
[329979925,1718892634892,-200.0,0.00012093,2]
[329979927,1718892634902,-201.29288503,0.00012095,2]